Cogmind - Beta 15 @@@ ROGUE MODE // 2025.09.14 @ 15:38:58 Player: Runagate Result: Self-destructed Performance ------------- Evolutions (2) 1000 Regions Visited (4) 800 Robots Destroyed (40) 200 Value Destroyed (1093) 1093 Prototype IDs (4) 80 Alien Tech Used (0) 0 Bonus (0) 0 TOTAL SCORE: 3173 Bonus ------- None Cogmind --------- Core Integrity 522/550 Matter 300/300 Energy 240/240 System Corruption 0% Temperature Cool (0) Movement Walking (190) Ox1 Location -8/Storage Parts ------- > --- POWER (1) -------- Nuclear Core > --- PROPULSION (3) --- Aluminum Leg Improved Aluminum Leg Carbon-fiber Leg > --- UTILITY (4) ------ Improved Heat Sink Large Storage Unit ECM Suite Light Armor Plating > --- WEAPON (3) ------- Heavy EM Pulse Gun Pulse Rifle High-powered Shotgun > --- INVENTORY (15) --- Nuclear Core Nuclear Core Light Treads Light Treads Improved Treads Aluminum Leg Aluminum Leg Aluminum Leg Carbon-fiber Leg Small Storage Unit Light Armor Plating Medium Armor Plating Medium Laser Small Laser Shotgun Peak State ------------ > --- POWER ------------ Nuclear Core > --- PROPULSION ------- Aluminum Leg Improved Aluminum Leg Carbon-fiber Leg > --- UTILITY ---------- Improved Heat Sink Large Storage Unit ECM Suite Light Armor Plating > --- WEAPON ----------- Heavy EM Pulse Gun Pulse Rifle High-powered Shotgun > --- INVENTORY -------- Nuclear Core Nuclear Core Light Treads Light Treads Improved Treads Aluminum Leg Aluminum Leg Aluminum Leg Carbon-fiber Leg Small Storage Unit Light Armor Plating Medium Armor Plating Medium Laser Small Laser Shotgun [Rating: 25] Favorites ----------- Power Ion Engine Engine Ion Engine Power Core Nuclear Core Propulsion Aluminum Leg Treads Light Treads Leg Aluminum Leg Utility ECM Suite Device ECM Suite Storage Large Storage Unit Protection Light Armor Plating Weapon Medium Laser Energy Gun Medium Laser Ballistic Gun Shotgun Build | -11 -10 -9 -8 -8 ------- Run | Yrd Mat Mat Mat Sto Slots Evolved 4 | . . 2 2 . Power . | . . . . . Propulsion 1 | . . 1 . . Utility 2 | . . 1 1 . Weapon 1 | . . . 1 . Parts Attached 37 | 8 5 17 7 . Power 5 | 1 . 4 . . Engine 4 | 1 . 3 . . Core 1 | . . 1 . . Reactor . | . . . . . Propulsion 15 | 2 2 8 3 . Treads 3 | . . 3 . . Leg 12 | 2 2 5 3 . Wheel . | . . . . . Hover . | . . . . . Flight . | . . . . . Utility 7 | 2 1 2 2 . Device 4 | 1 1 1 1 . Storage 2 | 1 . 1 . . Processor . | . . . . . Hackware . | . . . . . Protection 1 | . . . 1 . Artifact . | . . . . . Weapon 10 | 3 2 3 2 . Energy Gun 6 | 2 1 3 . . Energy Cannon . | . . . . . Ballistic Gun 4 | 1 1 . 2 . Ballistic Cannon . | . . . . . Launcher . | . . . . . Special Weapon . | . . . . . Impact Weapon . | . . . . . Slashing Weapon . | . . . . . Piercing Weapon . | . . . . . Special Melee Weapon . | . . . . . Unidentified Prototypes . | . . . . . Parts Lost 3 | . 1 1 1 . Power 1 | . . 1 . . Propulsion . | . . . . . Utility 2 | . 1 . 1 . Weapon . | . . . . . Highest Loss Streak 1 | . 1 1 1 . To Critical Strikes . | . . . . . Average Backups 9 | 3 6 10 14 15 Power 1 | . 1 1 2 2 Propulsion 4 | 1 2 4 7 7 Utility 1 | . . 2 3 3 Weapon 2 | . 2 2 2 3 Tool/Special . | . . . . . Unused Backups 5 | . . 1 . 4 Power 3 | . . 1 . 2 Propulsion . | . . . . . Utility 2 | . . . . 2 Weapon . | . . . . . Tool/Special . | . . . . . Average Slot Usage (%) 90 | . 90 89 92 100 Engine 9 | . 14 9 . . Core 2 | . . . 9 9 Treads 1 | . . 2 . . Leg 28 | . 28 30 27 27 Device 11 | . 5 13 19 18 Storage 11 | . 14 11 9 9 Energy Gun 14 | . 14 13 18 18 Ballistic Gun 10 | . 14 8 9 9 Peak Build Rating 25 | 7 8 17 25 25 Average Rating 10 | 5 6 11 21 25 On Entrance 11 | . 7 8 17 25 Naked Turns . | . . . . . Heaviest Build 42 | 15 17 36 42 42 Greatest Support 63 | 20 20 63 38 38 Greatest Overweight (x) 1 | . . 1 1 1 Average Overweight (x) . | . . . 1 1 Largest Inventory Capacity 15 | 8 8 15 15 15 Average Capacity 11 | 7 8 14 15 15 Most Carried 15 | 4 8 15 15 15 Average Carried 9 | 3 6 11 14 15 Final Capacity 15 | 8 8 15 15 15 Final Carried 15 | 4 8 15 15 15 Class Distribution -------------------- 79% | Mutant 10% | Gunner 3% | Scavenger-Mutant 3% | Scavenger-Tank 3% | Scavenger-Gunner Dominant Class ---------------- Mutant | -10/Materials Mutant | -9/Materials Gunner | -8/Materials Scavenger-Tank | -8/Storage Resources | -11 -10 -9 -8 -8 ----------- Run | Yrd Mat Mat Mat Sto Matter Collected 954 | 331 118 350 133 22 Remotely . | . . . . . Salvage Created 1388 | 239 157 628 364 . Parts 89 | 15 6 36 32 . Haulers Intercepted . | . . . . . Recyclers Shooed . | . . . . . Parts Field Recycled . | . . . . . Retrieved Matter . | . . . . . Parts Self-Destructed . | . . . . . Prevented . | . . . . . Kills | -11 -10 -9 -8 -8 ------- Run | Yrd Mat Mat Mat Sto Combat Hostiles Destroyed 28 | . 4 15 9 . Guns 28 | . 4 15 9 . Classes Destroyed 9 | 3 1 3 2 . Worker 2 | 1 . . 1 . Tunneler 6 | 6 . . . . Recycler 1 | 1 . . . . Watcher 3 | . . 1 2 . Swarmer 4 | . . . 4 . Grunt 19 | . 4 12 3 . Brawler 1 | . . 1 . . Sentry 3 | . . 2 1 . Hunter 1 | . . . 1 . Best Kill Streak 8 | 3 2 4 8 . Combat Bots Only 5 | . 2 4 5 . Max Kills in Single Turn 2 | 1 1 1 2 . Gunslinging 1 | . . . 1 . Exploded . | . . . . . Melee . | . . . . . Uniques/NPCs Destroyed . | . . . . . Combat | -11 -10 -9 -8 -8 -------- Run | Yrd Mat Mat Mat Sto Hostile Shots Fired 125 | . 28 58 39 . Missed 41 | . 8 18 15 . Hits 84 | . 20 40 24 . Projectile 84 | . 20 40 24 . Critical Strikes 2 | . 2 . . . Damage Taken 1103 | . 262 505 336 . Core 161 | . 51 82 28 . Absorbed by Shields . | . . . . . Core Remaining (%) 86 | 100 79 79 . . Volleys Fired 108 | 25 18 44 20 1 Largest 3 | 2 2 2 3 3 Hottest 133 | 70 73 95 133 133 Shots Fired 229 | 50 35 83 58 3 Gun 229 | 50 35 83 58 3 Cannon . | . . . . . Launcher . | . . . . . Special . | . . . . . Kinetic 98 | 25 18 35 19 1 Thermal 101 | 25 17 39 19 1 Explosive . | . . . . . Electromagnetic 30 | . . 9 20 1 Robot Hit Streak 14 | 14 9 13 9 2 Robot Miss Streak 5 | 1 2 5 5 1 Penetration Max . | . . . . . Secondary Targets 5 | . 1 2 2 . Max Gunslinging Chain 1 | . 1 1 1 . Shots Hit Robots 167 | 41 25 64 35 2 Core Hits 72 | 9 12 32 19 . Critical Kills . | . . . . . Critical Parts Destroyed 2 | . . 2 . . Critical Strikes 13 | 3 . 9 1 . Burn 10 | 3 . 7 . . Destroy 2 | . . 2 . . Corrupt 1 | . . . 1 . Melee Attacks . | . . . . . Impact . | . . . . . Slashing . | . . . . . Piercing . | . . . . . Sneak Attacks . | . . . . . Combat Hostiles . | . . . . . Follow-up Attacks . | . . . . . Damage Inflicted 2565 | 543 339 967 682 34 Guns 2481 | 543 337 967 600 34 Cannons . | . . . . . Explosions 82 | . . . 82 . Melee . | . . . . . Ramming 2 | . 2 . . . Kinetic 1096 | 253 187 499 142 15 Thermal 1056 | 290 150 351 265 . Explosive . | . . . . . Electromagnetic 411 | . . 117 275 19 Impact . | . . . . . Slashing . | . . . . . Piercing . | . . . . . Highest Corruption . | . . . . . Average Corruption . | . . . . . Corruption Purged . | . . . . . Corruption Blocked . | . . . . . Overload Shots . | . . . . . Overflow Damage . | . . . . . Projectiles . | . . . . . Explosions . | . . . . . Melee . | . . . . . Knockbacks . | . . . . . Impact . | . . . . . Kinetic . | . . . . . Secondary . | . . . . . Self-Inflicted Damage 12 | . . . 12 . Shots 1 | . . . 1 . Rammed . | . . . . . Targets Rammed 1 | . 1 . . . Kicked 1 | . 1 . . . Crushed . | . . . . . Highest Temperature 243 | 72 171 102 243 27 Average Temperature 40 | 23 50 25 75 18 Received Heat Transfer 534 | . 186 249 99 . Siege Activations . | . . . . . Martial Activations . | . . . . . Shielding Activations . | . . . . . Robots Disrupted . | . . . . . Combat Hostiles . | . . . . . Robots Corrupted . | . . . . . Combat Hostiles . | . . . . . Parts Fried . | . . . . . Impact Corruptions . | . . . . . Robots Melted . | . . . . . Combat Hostiles . | . . . . . Parts Melted 6 | 1 2 3 . . Heat Transferred 3578 | 1073 444 1554 507 . Parts Sabotaged . | . . . . . Parts Stolen . | . . . . . Parts Stripped . | . . . . . Power Chain Reactions 1 | . . . 1 . Alert | -11 -10 -9 -8 -8 ------- Run | Yrd Mat Mat Mat Sto Maximum Alert Level 1 | . . 1 . . Low Security (%) 96 | 100 100 90 100 100 Level 1 3 | . . 9 . . Level 2 . | . . . . . Level 3 . | . . . . . Level 4 . | . . . . . Level 5 . | . . . . . High Security . | . . . . . Max Security . | . . . . . Peak Influence 224 | 10 50 224 185 72 Initial 78 | . . . 78 72 Average 49 | 2 7 81 88 70 Influence Increases 860 | 40 143 403 274 . Destroy 0b10 Robot/C 560 | . 80 300 180 . Destroy 0b10 Robot/NC 60 | 40 . 5 15 . Destroy Leader 136 | . 20 72 44 . Successful Hack 38 | . 12 26 . . Destroy Structure 6 | . 1 . 5 . Lose Combat Pursuer 60 | . 30 . 30 . Influence Decreases 798 | 40 143 217 288 110 Entered New Map 208 | . . . 108 100 Time Decay 570 | 40 143 207 170 10 Lost Part 20 | . . 10 10 . Squads Dispatched 8 | . 3 3 1 1 Investigation 3 | . . 2 1 . Extermination . | . . . . . Reinforcement 5 | . 3 1 . 1 Assault . | . . . . . Garrison . | . . . . . Intercept . | . . . . . Searches Triggered . | . . . . . Construction Impeded . | . . . . . Haulers Reinforced . | . . . . . Active Scanning Responses . | . . . . . Cargo Convoy Interrupts . | . . . . . Stealth | -11 -10 -9 -8 -8 --------- Run | Yrd Mat Mat Mat Sto Distress Signals 3 | . 1 . 2 . Communications Jammed . | . . . . . Distress Signals . | . . . . . Times Spotted 52 | . 13 21 18 . Peak Tracking Total 7 | . 3 4 7 1 Tactical Retreats 7 | . 1 4 2 . Traps | -11 -10 -9 -8 -8 ------- Run | Yrd Mat Mat Mat Sto Traps Triggered 1 | . . . 1 . Indirectly . | . . . . . Trap Hack Attempts . | . . . . . Triggered . | . . . . . Disarmed . | . . . . . Reprogrammed . | . . . . . Reused . | . . . . . Traps Extracted . | . . . . . Installed . | . . . . . Triggered . | . . . . . Machines | -11 -10 -9 -8 -8 ---------- Run | Yrd Mat Mat Mat Sto Machines Disabled . | . . . . . Max in Single Turn . | . . . . . Machines Repaired . | . . . . . Machines Dismantled . | . . . . . Machines Sabotaged . | . . . . . Overloaded Fab Kills . | . . . . . Hacking | -11 -10 -9 -8 -8 --------- Run | Yrd Mat Mat Mat Sto Machines Accessed 7 | . 3 4 . . Terminals 7 | . 3 4 . . Fabricators . | . . . . . Repair Stations . | . . . . . Recycling Units . | . . . . . Scanalyzers . | . . . . . Garrison Access . | . . . . . Total Hacks 22 | . 9 13 . . Successful 10 | . 3 7 . . Failed 12 | . 6 6 . . Catastrophic 4 | . 3 1 . . Database Lockouts . | . . . . . Manual 12 | . 5 7 . . Terminals 22 | . 9 13 . . Fabricators . | . . . . . Repair Stations . | . . . . . Recycling Units . | . . . . . Scanalyzers . | . . . . . Garrison Access . | . . . . . Terminal Hacks 10 | . 3 7 . . Prototype ID Bank 2 | . 1 1 . . Emergency Access Points 3 | . 1 2 . . Alert Level 1 | . . 1 . . Locate Traps 1 | . . 1 . . Patrol Status 2 | . 1 1 . . Zone Layout 1 | . . 1 . . Fabricator Hacks . | . . . . . Repair Station Hacks . | . . . . . Recycling Unit Hacks . | . . . . . Scanalyzer . | . . . . . Garrison Access Hacks . | . . . . . Unauthorized Hacks . | . . . . . Terminals . | . . . . . Fabricators . | . . . . . Repair Stations . | . . . . . Recycling Units . | . . . . . Scanalyzers . | . . . . . Garrison Access . | . . . . . Data Cores Recovered . | . . . . . Used . | . . . . . Hacking Detections 7 | . 3 4 . . Full Trace Events 2 | . . 2 . . Feedback Events . | . . . . . Feedback Blocked . | . . . . . Robot Schematics Acquired . | . . . . . Robots Built . | . . . . . Authchips . | . . . . . Time . | . . . . . Total Robot Build Rating . | . . . . . Part Schematics Acquired . | . . . . . Parts Built . | . . . . . Authchips . | . . . . . Time . | . . . . . Total Part Build Rating . | . . . . . Parts Repaired . | . . . . . Time . | . . . . . Parts Recycled . | . . . . . Recycled Matter . | . . . . . Retrieved Matter . | . . . . . Retrieved Components . | . . . . . Parts Scanalyzed . | . . . . . Part Schematics Acquired . | . . . . . Parts Damaged . | . . . . . Bothacking | -11 -10 -9 -8 -8 ------------ Run | Yrd Mat Mat Mat Sto Used RIF Installer . | . . . . . Robots Hacked . | . . . . . Non-combat . | . . . . . Combat . | . . . . . Robot Hacks Applied . | . . . . . Relay Couplers Released . | . . . . . Fabnet Peak Effective % . | . . . . . Robots Rewired . | . . . . . Allies Hacked . | . . . . . Hacks Repelled . | . . . . . Allies | -11 -10 -9 -8 -8 -------- Run | Yrd Mat Mat Mat Sto Total Allies . | . . . . . Largest Group . | . . . . . Highest-Rated Group . | . . . . . Highest-Rated Ally . | . . . . . Total Orders . | . . . . . Ally Attacks . | . . . . . Total Damage . | . . . . . Kills . | . . . . . Allies Corrupted . | . . . . . Allies Melted . | . . . . . Intel | -11 -10 -9 -8 -8 ------- Run | Yrd Mat Mat Mat Sto Active Infowar (turns) 1161 | 14 281 802 41 23 Seismic 159 | 14 145 . . . ECM 1002 | . 136 802 41 23 Robot Analysis Total . | . . . . . Derelict Logs Recovered . | . . . . . Drone Launches . | . . . . . Drone Recoveries . | . . . . . Exploration | -11 -10 -9 -8 -8 ------------- Run | Yrd Mat Mat Mat Sto Turns Passed 2266 | 237 769 880 357 23 Spaces Moved 1210 | 107 531 423 139 10 Core 3 | 3 . . . . Treads 35 | . . 35 . . Legs 1172 | 104 531 388 139 10 Wheels . | . . . . . Hover . | . . . . . Flight . | . . . . . Fastest Speed 50 | 50 120 120 190 190 Average Speed 137 | 118 120 146 190 190 Slowest Speed 190 | 120 120 190 190 190 Overloaded Moves . | . . . . . Propulsion Burnouts . | . . . . . Robots Hopped . | . . . . . Potential Cave-ins . | . . . . . Cave-ins Triggered . | . . . . . Exploration Rate (%) 23 | 7 64 27 15 6 Regions Visited 4 Branch Regions 1 Pre-discovered Areas . | . . . . . Known Exits Taken . | . . . . . Unknown Exits Taken 4 | 1 1 1 1 . Scrap Searched . | . . . . . Spaces Dug . | . . . . . Terrain Destroyed 5 | . . . 5 . Melee . | . . . . . Projectile . | . . . . . AOE 5 | . . . 5 . Terrain Rammed . | . . . . . Walls Destroyed . | . . . . . Machines Disabled . | . . . . . Actions | -11 -10 -9 -8 -8 --------- Run | Yrd Mat Mat Mat Sto Total 1588 | 163 629 597 188 11 Wait 202 | 20 64 99 19 . Move 1206 | 106 530 422 138 10 Hop . | . . . . . Pick Up 15 | 4 6 5 . . Fast Attach 12 | 7 1 2 2 . Attach 3 | . . 2 1 . Detach 1 | . . 1 . . Swap 26 | 1 4 16 5 . Drop 14 | . 5 6 3 . Fire 108 | 25 18 44 20 1 Melee . | . . . . . Ram . | . . . . . Kick 1 | . 1 . . . Crush . | . . . . . Escape Stasis . | . . . . . Rewire . | . . . . . Trap . | . . . . . Miscellaneous . | . . . . . Route ------- -11/Scrapyard -10/Materials (discovered 3 exits: *Mat / [*Min] / [*Sub]) -9/Materials -8/Materials -8/Storage History --------- Turn | Location | Event 4 | -11/Scrapyard | Discovered new exit (range 16) 238 | -11/Scrapyard | Entered Materials 302 | -10/Materials | Build established: Mutant 340 | -10/Materials | Discovered new exit (range 16) 489 | -10/Materials | Discovered new exit (range 3) 858 | -10/Materials | Discovered new exit (range 6) 1007 | -10/Materials | Entered another Materials area 1007 | -9/Materials | Evolved 2 slots: Propulsion x1, Utility x1 1845 | -9/Materials | Discovered new exit (range 16) 1887 | -9/Materials | Entered another Materials area 1887 | -8/Materials | Evolved 2 slots: Utility x1, Weapon x1 2126 | -8/Materials | Discovered new exit (range 16) 2244 | -8/Materials | Entered Storage 2267 | -8/Storage | Self-destructed Last Messages --------------- 02152_ Y-45 Defender destroyed. 02156_ W-25 Informer sends out distress signal. 02159_ W-25 Informer destroyed. 02170_ Heat Sink destroyed. 02173_ Penetrated by Slug. 02177_ H-55 Commando destroyed. 02186_ Dropped Aluminum Leg. 02196_ Acquired 49 matter. 02213_ Acquired Lgt. Armor Plating. 02223_ K-01 Serf collects debris. 02227_ W-25 Informer destroyed. 02228_ K-01 Serf collects debris. LOCATION=UNKNOWN GOAL=ESCAPE 02244_ Destroyed Hover Unit. 02245_ O-16 Technician: "IFF HANDSHAKE FAILED. SECURING TERMINAL." 02253_ ALERT: Hostiles spotted, dispatching reinforcements to Terminal S015. 02263_ Acquired 22 matter. Map ----- +----------------------------------------------------+ | | | | | | | | | | | | | | | | | | | | | | | ?????????????????????????????????????? | | ?????????????????????????????????????? | | ?????????????????????????????????????? | | ?????????????????????????????????????? | | ?????????????????????????????????????? | | ?????????????????????????????????????? | | ?????????????????????????????????????? | | ?????################+##+????????????? | | ?????# ???????????? | | ?????# ???????????? | | ?????# ???????????? | | ?????######+#########+???????????????? | | ???????# #????????????????????? | | ???????# """ % #????????????????????? | | ???????# """ @ #????????????????????? | | ???????# """ #????????????????????? | | ??????"" #????????????????????? | | ?????"Y #????????????????????? | | ?????""" "Y" #????????????????????? | | ?????### """ #????????????????????? | | ???????# o #????????????????????? | | ???????######T###????????????????????? | | ????????????###??????????????????????? | | ?????????????????????????????????????? | | ?????????????????????????????????????? | | ?????????????????????????????????????? | | ?????????????????????????????????????? | | ?????????????????????????????????????? | | ?????????????????????????????????????? | | ?????????????????????????????????????? | | ?????????????????????????????????????? | | ?????????????????????????????????????? | | ?????????????????????????????????????? | | ?????????????????????????????????????? | | ?????????????????????????????????????? | | ?????????????????????????????????????? | | ?????????????????????????????????????? | | ?????????????????????????????????????? | | ?????????????????????????????????????? | +----------------------------------------------------+ Best States ------------- Heat Dissipation 45 Energy Generation 14 Energy Capacity 250 Matter Stores 300 Matter Capacity 300 Sight Range 16 Terrain Scan Density 10 ECM Strength 1 Armor Coverage 150 Evasion (%) 55 Recoil Reduction 3 Item Schematics ----------------- None Robot Schematics ------------------ None Fabricated ------------ Nothing Repaired ---------- Nothing Alien Tech Used ----------------- None Achievements -------------- None Challenges ------------ None Game ------ Seed BiometalStorageDoublenader Manual? 0 Play Time 00:12:42 Cumulative 60.9 hours Start 2025.09.14 @ 15:26:26 End 2025.09.14 @ 15:38:58 Sessions 1 Manual Loads 0 Difficulty Rogue Special Mode None Game No. 118 Rogue 116 Adventurer 0 Explorer 2 Win Type - Total 0 Types 0/0/0/0/0/0/0/0/0/0 Lore% 26 Gallery% 41 Achievement% 39 Wizard Run 0 Options --------- Layout 2 ASCII 0 Keyboard 1 Movement Arrows Keybinds 0 Fullscreen 1 Font 28/SmallcapsGlow Map View 50x49 Zoom Use 8% Tactical HUD 1 Map Filters NONE Filters NONE Steam 1 RUN: 512452fd-5293-47c1-8b7f-4a546584c8c3